[Event "IIFL Wealth  4th Mumbai Junior U-13"]
[Site "Mumbai"]
[Date "2018.12.31"]
[Round "2"]
[White "Pranav Vijay"]
[Black "Nanal Arnav"]
[Result "1-0"]
[ECO "B10"]
[WhiteElo "2265"]
[BlackElo "1456"]
[Annotator "NA"]
[PlyCount "215"]
[EventDate "2018.12.30"]
[EventType "swiss"]
[EventCountry "IND"]
[SourceTitle "playchess.com"]
[Source "ChessBase"]
[SourceQuality "1"]
[TimeControl "40/5400+30:1800+30"]

1. e4 {[%emt 0:00:00]} c6 {[%emt 0:00:27]} 2. Nc3 {[%emt 0:00:00]} d5 {[%emt 0:00:43]} 3. Qe2 {[%emt 0:00:00] B11: Caro-Kann: Two Knights Variation} (3. Nf3 Bg4 4. h3 Bxf3 5. Qxf3 e6 6. Qg3 Ne7 7. d3 Nd7 8. Be2 g6 9. O-O Bg7 10. Kh1 O-O 11. f4 Kh8 12. Bf3 b5 13. a3 a5 {1-0 (69) McShane,L (2672)-Rodshtein,M (2674) Batumi 2018}) 3... d4 {[%emt 0:03:20]} 4. Nd1 {[%emt 0:00:02]} e5 {[%emt 0:02:59]} 5. g3 {[%emt 0:00:18]} Nf6 {[%emt 0:02:16]} 6. Bg2 {[%emt 0:00:27] LiveBook: 3 Games} Bg4 {[%emt 0:03:44]} 7. Nf3 $146 {[%emt 0:00:11]} ({Predecessor:} 7. f3 Bh5 8. d3 Nbd7 9. Nh3 Bb4+ 10. c3 Bc5 {½-½ (61) Ugrinovsky,A (2212)-Narciso,M (2217) ICCF email 2014}) 7... Nbd7 {[%emt 0:00:31]} 8. h3 {[%emt 0:03:07]} Bh5 {[%emt 0:01:46]} 9. d3 {[%emt 0:00:45]} Be7 {[%emt 0:01:44]} 10. O-O {[%emt 0:03:11]} O-O {[%emt 0:01:58]} 11. g4 {[%emt 0:00:17]} Bg6 {[%emt 0:00:21]} 12. Nh4 {[%emt 0:00:44]} Ne8 {[%emt 0:09:31]} 13. Nxg6 {[%emt 0:01:26]} fxg6 {[%emt 0:03:34]} ({Don't play} 13... hxg6 $6 14. f4 $11) 14. f4 {[%emt 0:00:10] [#]} Nc7 {[%emt 0:04:55]} (14... exf4 $1 $17 15. Bxf4 Nc7) 15. f5 $1 {[%emt 0:05:34]} g5 {[%emt 0:08:21]} (15... a5 $11) 16. Bf3 {[%emt 0:01:44]} h6 {[%emt 0:08:17]} 17. Bd2 {[%emt 0:01:26]} a5 {[%emt 0:04:59]} 18. Qh2 {[%emt 0:00:50]} Na6 {[%emt 0:11:27]} 19. Nf2 {[%emt 0:03:20]} Nc7 {[%emt 0:15:41]} 20. Kg2 {[%emt 0:00:36]} Ne8 {[%emt 0:01:11]} 21. c3 {[%emt 0:03:10]} c5 {[%emt 0:01:46]} 22. Rac1 {[%emt 0:00:38]} Nd6 {[%emt 0:01:25]} 23. Rc2 {[%emt 0:01:14]} a4 {[%emt 0:04:18]} 24. Rfc1 {[%emt 0:00:19]} Nb5 {[%emt 0:00:45]} 25. Be2 {[%emt 0:04:51]} b6 {[%emt 0:01:29]} 26. Nh1 {[%emt 0:02:21]} Kh8 {[%emt 0:01:40]} 27. Ng3 {[%emt 0:00:51]} Nf6 {[%emt 0:00:39]} 28. c4 {[%emt 0:01:51]} Nd6 {[%emt 0:00:26]} 29. Bf3 {[%emt 0:00:54]} Nf7 {[%emt 0:00:38]} 30. Nf1 {[%emt 0:00:42]} Qd7 {[%emt 0:00:34]} 31. Qg3 {[%emt 0:00:46]} Rfb8 {[%emt 0:00:45]} 32. Be1 {[%emt 0:02:04]} Qd8 {[%emt 0:00:47]} 33. Nd2 {[%emt 0:00:39]} Ra7 {[%emt 0:00:51]} 34. Be2 {[%emt 0:00:17]} Rd7 {[%emt 0:00:59]} 35. Rd1 {[%emt 0:00:14]} Nh7 {[%emt 0:00:48]} 36. Nf3 {[%emt 0:00:20]} Bf6 {[%emt 0:00:05]} 37. Rb1 {[%emt 0:00:44]} Ra7 {[%emt 0:01:00]} 38. Bd1 {[%emt 0:01:54]} Rba8 {[%emt 0:00:42]} 39. Rf2 {[%emt 0:01:28]} Qe7 {[%emt 0:01:12]} 40. Bc2 {[%emt 0:00:00]} Qd8 {[%emt 0:00:00]} 41. Bd2 {[%emt 0:00:42]} Qe7 {[%emt 0:01:08]} 42. Rh1 {[%emt 0:00:21]} Qd8 {[%emt 0:02:20]} 43. h4 {[%emt 0:01:06]} Qe7 {[%emt 0:00:57]} 44. Kf1 {[%emt 0:01:35]} Kg8 {[%emt 0:00:54]} 45. Rfh2 {[%emt 0:00:17]} Qd6 {[%emt 0:03:22]} 46. Ke2 {[%emt 0:01:30]} Rd8 {[%emt 0:08:32]} 47. Rb1 {[%emt 0:01:56]} Rda8 {[%emt 0:01:37]} 48. b4 {[%emt 0:00:29]} Rb8 {[%emt 0:02:50]} 49. Rhh1 {[%emt 0:00:39]} Qd8 {[%emt 0:01:40] [#]} (49... b5 $11 {remains equal.}) 50. bxc5 {[%emt 0:02:34]} (50. hxg5 $1 $16 Bxg5 51. Nxg5 (51. Nxe5 $2 Qd6 $19) 51... Nhxg5 52. Bxg5 Qxg5 53. bxc5) 50... bxc5 {[%emt 0:00:17]} (50... gxh4 $11 51. Nxh4 bxc5) 51. Rxb8 {[%emt 0:00:08]} Qxb8 {[%emt 0:00:17]} 52. Rb1 {[%emt 0:00:09]} Qd8 {[%emt 0:04:18]} 53. h5 {[%emt 0:00:12]} Nf8 {[%emt 0:00:46]} 54. Qe1 {[%emt 0:01:06]} Nd6 {[%emt 0:01:06]} 55. Qd1 {[%emt 0:00:11]} Qa8 {[%emt 0:01:48]} 56. Rb6 {[%emt 0:00:16]} Nc8 {[%emt 0:00:28]} 57. Rb5 {[%emt 0:00:53]} Nd7 {[%emt 0:00:23]} 58. a3 {[%emt 0:01:02]} Nd6 {[%emt 0:00:12]} 59. Rb2 {[%emt 0:00:12]} Bd8 {[%emt 0:01:25]} 60. Qb1 {[%emt 0:00:25]} Bf6 {[%emt 0:00:08]} 61. Be1 {[%emt 0:00:08]} Kh7 {[%emt 0:00:40]} 62. Bg3 {[%emt 0:00:43]} Ra6 {[%emt 0:01:35]} 63. Kf2 {[%emt 0:00:36]} Ra5 64. Kg2 {[%emt 0:00:16]} Ra6 {[%emt 0:01:26]} 65. Kf2 {[%emt 0:00:56]} Ra5 {[%emt 0:00:03]} 66. Qh1 {[%emt 0:00:09]} Ra6 {[%emt 0:00:59]} 67. Ke2 {[%emt 0:00:27]} Ra5 {[%emt 0:00:36]} 68. Ng1 {[%emt 0:00:57]} (68. Qh2 $16) 68... Ra7 {[%emt 0:02:31]} 69. Nh3 {[%emt 0:00:08]} Ra6 {[%emt 0:01:37]} 70. Qb1 {[%emt 0:00:05]} Ra5 {[%emt 0:00:23]} 71. Nf2 $16 {[%emt 0:00:18]} Ra7 {[%emt 0:00:53]} 72. Nd1 {[%emt 0:00:33]} Ra6 {[%emt 0:00:16]} 73. Be1 {[%emt 0:00:46]} Ra7 {[%emt 0:00:58]} 74. Bd2 {[%emt 0:00:29]} Ra6 {[%emt 0:00:28]} 75. Qa2 {[%emt 0:00:01]} Ra7 {[%emt 0:00:30]} 76. Rb1 {[%emt 0:00:09]} Ra6 {[%emt 0:00:32]} 77. Nb2 {[%emt 0:00:03]} Nb6 {[%emt 0:00:58]} 78. Kf3 {[%emt 0:00:20]} Qa7 {[%emt 0:00:04]} 79. Nd1 {[%emt 0:00:35]} Nd7 {[%emt 0:00:40]} 80. Rb2 {[%emt 0:01:02]} Qa8 {[%emt 0:00:05]} 81. Qb1 {[%emt 0:00:03]} Ra7 {[%emt 0:00:10]} 82. Nf2 {[%emt 0:01:29]} Ra6 {[%emt 0:00:05]} 83. Nh3 {[%emt 0:00:11]} Ra7 {[%emt 0:00:06]} 84. Qc1 {[%emt 0:00:03]} Nf7 {[%emt 0:02:24]} 85. Bb1 {[%emt 0:00:39]} Ra6 {[%emt 0:00:37]} 86. Ba2 {[%emt 0:00:01]} Qd8 {[%emt 0:00:37]} 87. Qe1 {[%emt 0:01:10]} Nd6 {[%emt 0:00:07]} 88. Nf2 {[%emt 0:01:58]} Qa8 {[%emt 0:00:10]} 89. Nd1 {[%emt 0:00:08]} Ra7 {[%emt 0:00:07]} 90. Nf2 {[%emt 0:01:31]} Ra6 {[%emt 0:00:13]} 91. Qc1 {[%emt 0:00:21]} Ra7 {[%emt 0:00:23]} 92. Nh3 {[%emt 0:00:02]} Qd8 {[%emt 0:00:05]} 93. Rb5 {[%emt 0:01:45]} Nxb5 {[%emt 0:01:29]} 94. cxb5 {[%emt 0:00:01]} Rb7 {[%emt 0:01:09]} 95. Qc4 {[%emt 0:00:08]} Qb8 {[%emt 0:00:42]} 96. Qf7 {[%emt 0:00:07]} Rxb5 {[%emt 0:00:40]} 97. Bxg5 {[%emt 0:01:26]} Bxg5 98. Nxg5+ {[%emt 0:00:48]} hxg5 {[%emt 0:00:41]} 99. h6 {[%emt 0:00:21]} Qf8 {[%emt 0:00:41]} 100. Qg6+ {[%emt 0:00:18]} Kh8 {[%emt 0:00:08]} 101. hxg7+ {[%emt 0:00:05]} Qxg7 {[%emt 0:00:06]} 102. Qh5+ {[%emt 0:00:03]} Qh7 {[%emt 0:00:29]} 103. Qe8+ {[%emt 0:00:05]} Kg7 {[%emt 0:00:25]} 104. Qxd7+ {[%emt 0:00:06]} Kh8 {[%emt 0:00:51]} 105. Qe8+ {[%emt 0:00:07]} Kg7 {[%emt 0:00:09]} 106. Qe7+ {[%emt 0:00:06]} Kh6 {[%emt 0:00:06]} 107. Qf6+ {[%emt 0:00:05]} Qg6 {[%emt 0:00:06]} 108. Qxg6# {[%emt 0:00:09]} 1-0

[Event "IIFL Wealth  4th Mumbai Junior U-13"]
[Site "Mumbai"]
[Date "2018.12.31"]
[Round "2"]
[White "Tyagi, Kushan"]
[Black "Shreyas Ravindra Patil"]
[Result "0-1"]
[ECO "B90"]
[WhiteElo "2042"]
[BlackElo "1110"]
[Annotator "NA"]
[PlyCount "74"]
[EventDate "2018.12.30"]
[EventType "swiss"]
[EventCountry "IND"]
[SourceTitle "playchess.com"]
[Source "ChessBase"]
[SourceQuality "1"]
[TimeControl "40/5400+30:1800+30"]

1. e4 {[%emt 0:00:00]} c5 {[%emt 0:00:00]} 2. Nf3 {[%emt 0:00:00]} d6 {[%emt 0:00:00]} 3. d4 {[%emt 0:00:00]} cxd4 {[%emt 0:00:00]} 4. Nxd4 Nf6 5. Nc3 {[%emt 0:00:41]} a6 {[%emt 0:00:14]} 6. Bc4 e6 7. Bb3 Be7 8. Be3 {[%emt 0:01:51]} O-O {[%emt 0:01:08]} 9. f3 {[%emt 0:00:04]} Nbd7 {[%emt 0:00:39]} 10. Qd2 {[%emt 0:01:12]} Nc5 {[%emt 0:00:30]} 11. O-O-O {[%emt 0:00:02] B86: Sicilian Scheveningen/Najdorf: 6 Bc4, without early ...b5} b5 {[%emt 0:00:16]} (11... Qc7 12. g4 b5 13. g5 Nfd7 14. h4 Nb6 15. g6 b4 16. Nce2 Bd7 17. h5 a5 18. h6 fxg6 19. hxg7 Rf7 20. Nf4 Nxb3+ 21. axb3 a4 22. Nfxe6 axb3 23. Qxb4 Bxe6 24. c3 Nc4 25. Nxb3 Nxe3 {0-1 (25) Ravic,N (2181)-Perunovic,M (2655) Belgrade 2016}) 12. Kb1 Bb7 13. g4 Rc8 14. h4 {[%emt 0:02:11]} b4 $146 {[%emt 0:02:18]} ({Predecessor:} 14... Nfd7 15. Rdg1 Nxb3 16. axb3 b4 17. Na4 {0-1 (48) Gyuricsek,S (1710)-Batora,M (1951) Slovakia 2018}) 15. Na4 Nxb3 16. axb3 {[%emt 0:02:25]} d5 {[%emt 0:02:09]} 17. h5 dxe4 18. g5 Nd5 19. h6 {[%emt 0:04:11]} g6 {[%emt 0:02:25]} 20. Bf4 Nxf4 21. Qxf4 Bxg5 22. Qe5 {[%emt 0:05:46]} Qf6 {[%emt 0:01:08]} 23. Qxf6 Bxf6 24. Nb6 Rcd8 25. Ne2 {[%emt 0:05:00]} exf3 {[%emt 0:01:12]} 26. Nf4 f2 27. Rhf1 Rxd1+ 28. Rxd1 Be5 29. Nxg6 fxg6 30. Nd7 f1=Q 31. Rxf1 Rxf1+ 32. Ka2 Bd4 33. Nb8 a5 34. c3 bxc3 35. bxc3 Bxc3 36. b4 Bd5+ 37. Ka3 {[%emt 0:21:55]} Ra1# {[%emt 0:06:00]} 0-1

[Event "IIFL Wealth  4th Mumbai Junior U-13"]
[Site "Mumbai"]
[Date "2018.12.31"]
[Round "2"]
[White "Kadam Om Manish"]
[Black "Singh, Arjun Kumar"]
[Result "1-0"]
[ECO "B43"]
[WhiteElo "1944"]
[BlackElo "1461"]
[Annotator "NA RC"]
[PlyCount "61"]
[EventDate "2018.12.30"]
[EventType "swiss"]
[EventCountry "IND"]
[SourceTitle "playchess.com"]
[Source "ChessBase"]
[SourceQuality "1"]
[TimeControl "40/5400+30:1800+30"]

{[%evp 10,61,41,32767,32767,32767,2,0,0,-39,0,-6,-7,32767,-21,-21,-28,-23,-12,-28,-20,-22,6,0,32767,0,32767,32767,32767,32767,22,54,62,72,60,55,46,32767,0,19,402,287,384,32767,32767,32767,32767,32767,32767,32767,32767,32767,29996,29997]} 1. e4 {[%emt 0:00:00]} c5 {[%emt 0:00:57]} 2. Nf3 {[%emt 0:00:00]} e6 {[%emt 0:02:06]} 3. d4 {[%emt 0:00:00]} cxd4 {[%emt 0:02:21]} 4. Nxd4 {[%emt 0:00:05]} a6 {[%emt 0:00:48]} 5. Nc3 {[%emt 0:01:33]} Qc7 {[%emt 0:02:15]} 6. Bd3 {[%emt 0:01:21]} Nf6 {[%emt 0:00:30]} 7. Nb3 {[%emt 0:01:57] B43: Sicilian: Kan Variation: 5 Nc3} (7. f4 Bb4 8. Bd2 Bxc3 9. Bxc3 Qxf4 10. Qe2 Nc6 11. Rf1 Qh4+ 12. g3 Qg4 13. Nxc6 dxc6 14. Rxf6 Qxe2+ 15. Kxe2 gxf6 16. Bxf6 {1-0 (32) Grischuk,A (2766)-Caruana,F (2816) Leuven 2018}) 7... b5 {[%emt 0:04:18] LiveBook: 4 Games} 8. a3 {[%emt 0:02:08]} Bb7 {[%emt 0:00:27]} 9. Be3 {[%emt 0:00:08]} Be7 {[%emt 0:01:22]} 10. f4 {[%emt 0:04:03]} d6 {[%emt 0:01:18]} 11. Qe2 {[%emt 0:01:01]} Nbd7 {[%emt 0:04:23]} 12. O-O {[%emt 0:00:57]} O-O {[%emt 0:02:35]} 13. Rad1 {[%emt 0:01:18]} Nc5 {[%emt 0:01:42]} 14. Nxc5 {[%emt 0:04:06]} dxc5 {[%emt 0:00:15]} 15. e5 $146 {[%emt 0:00:28]} Nd5 {[%emt 0:02:13]} 16. Nxd5 {[%emt 0:04:54]} Bxd5 {[%emt 0:02:54]} 17. c4 {[%emt 0:02:37]} Bxc4 {[%emt 0:01:18]} 18. Bxc4 {[%emt 0:00:09]} bxc4 {[%emt 0:00:07]} 19. Qxc4 {[%emt 0:00:55]} Rab8 {[%emt 0:00:52]} 20. b4 {[%emt 0:04:00]} Rfc8 {[%emt 0:01:35]} 21. Rc1 {[%emt 0:02:35]} Rb5 {[%emt 0:00:44]} 22. Rc2 {[%emt 0:02:28]} Qb6 {[%emt 0:00:22]} 23. Rfc1 {[%emt 0:13:11]} a5 {[%emt 0:06:04]} 24. bxc5 {[%emt 0:11:47]} Bxc5 $2 {[%emt 0:00:15]} (24... Rbxc5 $11 {and Black stays safe.} 25. Bxc5 Rxc5 26. Qxc5 (26. Qd4 $2 Rxc2 27. Qxb6 Rxc1+ 28. Kf2 Bc5+ 29. Qxc5 Rxc5 $19) 26... Bxc5+ 27. Rxc5 h6) 25. Kh1 {[%emt 0:03:15]} ({Not} 25. Bxc5 Rcxc5 26. Qxc5 Rxc5 $11) 25... h6 $2 {[%emt 0:00:58]} (25... g6 {was worth a try.}) 26. a4 {[%emt 0:01:50]} Rb4 {[%emt 0:00:12]} 27. Qe2 {[%emt 0:00:10]} Bxe3 {[%emt 0:00:55]} 28. Rxc8+ {[%emt 0:00:05]} Kh7 {[%emt 0:00:05]} 29. Qd3+ {[%emt 0:00:13]} g6 {[%emt 0:00:16]} 30. Qd7 {[%emt 0:00:31]} Rxf4 {[%emt 0:00:42] [#]} 31. Qe8 {[%emt 0:00:29]} 1-0

[Event "IIFL Wealth  4th Mumbai Junior U-13"]
[Site "Mumbai"]
[Date "2018.12.31"]
[Round "2"]
[White "Zia, Tahsin Tajwar"]
[Black "Swara Lakshmi S Nair"]
[Result "1-0"]
[ECO "D02"]
[WhiteElo "1925"]
[BlackElo "1415"]
[Annotator "NA"]
[PlyCount "89"]
[EventDate "2018.12.30"]
[EventType "swiss"]
[EventCountry "IND"]
[SourceTitle "playchess.com"]
[Source "ChessBase"]
[SourceQuality "1"]
[TimeControl "40/5400+30:1800+30"]

{[%evp 12,87,20,14,21,32767,32767,32767,32767,-9,32767,28,41,13,17,32767,13,7,32767,17,44,26,32767,35,32767,32767,32767,32767,32767,7,55,47,46,5,15,5,23,0,32767,32767,32767,32767,32767,32767,32767,32767,32767,32767,32767,32767,32767,32767,32767,32767,32767,32767,32767,32767,32767,32767,-69,-122,81,95,293,121,391,460,344,468,650,518,612,1346,29990,29987,29991,29992]} 1. d4 {[%emt 0:00:00]} d5 {[%emt 0:00:00]} 2. Nf3 {[%emt 0:00:00]} Nf6 {[%emt 0:01:07]} 3. Bf4 {[%emt 0:00:00]} e6 {[%emt 0:02:21]} 4. e3 {[%emt 0:00:05]} c5 {[%emt 0:00:40]} 5. Nbd2 {[%emt 0:00:13]} Nc6 {[%emt 0:02:01]} 6. c3 {[%emt 0:00:05]} cxd4 {[%emt 0:02:34]} 7. exd4 {[%emt 0:00:13] D02: 1 d4 d5 2 Nf3 sidelines, including 2...Nf6 3 g3 and 2...Nf6 3 Bf4} Nh5 {[%emt 0:00:28] LiveBook: 194 Games} 8. Bg5 {[%emt 0:01:00]} (8. Be3 Bd6 9. Bd3 Nf4 10. Bxf4 Bxf4 11. g3 Bd6 12. O-O O-O 13. Re1 Bd7 14. h4 h6 {1-0 (44) Caruana,F (2822)-Aronian,L (2767) chess.com INT 2018}) 8... f6 {[%emt 0:01:26]} 9. Be3 {[%emt 0:02:17]} Bd6 {[%emt 0:06:22]} 10. Bd3 {[%emt 0:02:17]} f5 $146 {[%emt 0:06:57]} ({Predecessor:} 10... Nf4 11. Bxf4 Bxf4 12. Qc2 f5 13. O-O O-O 14. Rfe1 Bd7 {0-1 (62) Popov,M (2416)-Kobalia,M (2596) Sochi 2017}) 11. Ne5 {[%emt 0:06:13]} Nf6 {[%emt 0:01:09]} 12. f4 {[%emt 0:11:45]} O-O {[%emt 0:01:19]} 13. O-O {[%emt 0:00:41]} Bd7 {[%emt 0:07:44]} 14. a4 {[%emt 0:01:04]} a5 {[%emt 0:04:00]} 15. Nb1 {[%emt 0:04:17]} Qe7 {[%emt 0:07:11]} 16. Na3 {[%emt 0:01:08]} Rac8 {[%emt 0:02:55]} 17. Nb5 {[%emt 0:00:34]} Bb8 {[%emt 0:00:11]} 18. h3 {[%emt 0:01:04]} Kh8 {[%emt 0:03:54]} 19. Qf3 {[%emt 0:02:34]} g6 {[%emt 0:06:37]} 20. Rae1 {[%emt 0:01:27]} Rfe8 {[%emt 0:05:23]} 21. g4 {[%emt 0:11:56]} Ne4 {[%emt 0:03:54]} 22. Bxe4 {[%emt 0:05:32]} dxe4 {[%emt 0:01:54]} 23. Qg3 {[%emt 0:01:08]} Qg7 {[%emt 0:02:09]} 24. Kh1 {[%emt 0:01:49]} Nxe5 {[%emt 0:09:28]} 25. fxe5 {[%emt 0:00:43]} Bxb5 {[%emt 0:04:50]} 26. axb5 {[%emt 0:00:09]} Bc7 {[%emt 0:00:38]} 27. c4 {[%emt 0:07:21]} b6 {[%emt 0:00:37]} 28. Rc1 {[%emt 0:01:51]} Rf8 {[%emt 0:01:08]} 29. Bg5 {[%emt 0:04:27]} Bd8 {[%emt 0:00:33]} 30. Bxd8 {[%emt 0:00:17]} Rfxd8 {[%emt 0:00:42]} 31. gxf5 {[%emt 0:06:32]} gxf5 {[%emt 0:01:27]} 32. Qe3 {[%emt 0:01:35]} Qe7 {[%emt 0:01:49]} 33. Rc3 {[%emt 0:05:43]} Rg8 {[%emt 0:01:02]} 34. b3 {[%emt 0:05:25]} Rg6 {[%emt 0:00:36]} 35. c5 {[%emt 0:06:11]} Qb7 $2 {[%emt 0:03:32]} (35... bxc5 $19 36. dxc5 Qg7) 36. c6 {[%emt 0:00:48] [#]} Qc7 $2 {[%emt 0:00:11] [#]} (36... Qg7 $1 $17 {stays on course.}) 37. Rg1 $1 {[%emt 0:02:12]} Rcg8 $2 {[%emt 0:00:42]} (37... Rxg1+ $16 38. Qxg1 Qd8) 38. Rcc1 {[%emt 0:01:13]} (38. Rxg6 $18 {is the precise move to win.} Rxg6 39. Qf4) 38... R8g7 $2 {[%emt 0:03:26]} (38... Kg7 $16 {keeps fighting.}) 39. Rxg6 {[%emt 0:01:45]} Rxg6 {[%emt 0:02:01]} 40. Qf4 {[%emt 0:00:00]} Kg7 {[%emt 0:00:00] [#]} 41. d5 $1 {[%emt 0:03:56]} exd5 {[%emt 0:01:29]} 42. Qxf5 {[%emt 0:00:15]} Kg8 {[%emt 0:03:23]} 43. Rf1 {[%emt 0:00:36]} Qe7 {[%emt 0:01:26] [#]} 44. c7 {[%emt 0:00:24]} Qxc7 {[%emt 0:00:22]} 45. Qf8# 1-0

[Event "IIFL Wealth  4th Mumbai Junior U-13"]
[Site "Mumbai"]
[Date "2018.12.31"]
[Round "2"]
[White "Savitha Shri B"]
[Black "Abhyuday Santhosh"]
[Result "1-0"]
[ECO "A06"]
[WhiteElo "1894"]
[BlackElo "1409"]
[Annotator "NA"]
[PlyCount "79"]
[EventDate "2018.12.30"]
[EventType "swiss"]
[EventCountry "IND"]
[SourceTitle "playchess.com"]
[Source "ChessBase"]
[SourceQuality "1"]
[TimeControl "40/5400+30:1800+30"]

1. Nf3 {[%emt 0:00:00]} d5 {[%emt 0:00:00]} 2. g3 {[%emt 0:00:00]} Nf6 {[%emt 0:00:18]} 3. Bg2 {[%emt 0:00:00]} e6 {[%emt 0:00:30]} 4. d4 {[%emt 0:00:07]} c5 {[%emt 0:00:30]} 5. O-O {[%emt 0:00:53]} Be7 {[%emt 0:00:14]} 6. b3 {[%emt 0:01:04]} O-O {[%emt 0:00:53]} 7. Bb2 {[%emt 0:00:34]} Nc6 {[%emt 0:00:45]} 8. Re1 {[%emt 0:03:36] D02: 1 d4 d5 2 Nf3 sidelines, including 2...Nf6 3 g3 and 2...Nf6 3 Bf4} (8. dxc5 Bxc5 9. c4 dxc4 10. Qc1 Bd7 11. Qxc4 Be7 12. e4 Rc8 13. Qe2 Qa5 14. Rd1 Rfd8 15. Nbd2 b5 {1-0 (62) Nakamura,H (2777)-Dominguez Perez,L (2739) Saint Louis 2018}) 8... Ne4 {[%emt 0:03:19]} 9. Nbd2 {[%emt 0:06:50]} Nxd2 $146 {[%emt 0:03:01]} ({Predecessor:} 9... Bf6 10. Nxe4 dxe4 11. Nd2 Bxd4 12. c3 e3 13. cxd4 exd2 14. Qxd2 cxd4 15. Bxc6 bxc6 16. Qxd4 Qxd4 17. Bxd4 {1-0 (56) Garcia Almaguer,J (2112)-Ramirez Marin,I (2102) Mexico City 2014}) 10. Qxd2 {[%emt 0:00:08]} Bf6 {[%emt 0:02:52]} 11. Rad1 {[%emt 0:06:14]} Qc7 {[%emt 0:07:02]} 12. c3 {[%emt 0:14:44]} cxd4 {[%emt 0:01:22]} 13. cxd4 {[%emt 0:00:01]} b6 {[%emt 0:01:04]} 14. Rc1 {[%emt 0:11:22]} Bb7 {[%emt 0:02:09]} 15. Ne5 {[%emt 0:02:14]} Bxe5 {[%emt 0:00:41]} 16. dxe5 {[%emt 0:00:05]} Qe7 {[%emt 0:00:55]} 17. e4 {[%emt 0:00:46]} d4 {[%emt 0:01:19]} 18. f4 {[%emt 0:02:09]} Rfd8 {[%emt 0:00:37]} 19. Bf1 {[%emt 0:01:20]} Rac8 {[%emt 0:01:41]} 20. Bc4 {[%emt 0:07:05]} Qb4 {[%emt 0:04:22]} 21. Qf2 {[%emt 0:07:45]} d3 {[%emt 0:01:48]} 22. Bc3 {[%emt 0:00:47]} Qc5 {[%emt 0:00:42]} 23. Qxc5 {[%emt 0:07:10]} bxc5 {[%emt 0:00:59]} 24. Rcd1 {[%emt 0:02:38]} d2 {[%emt 0:02:21]} (24... Nb4 $142) 25. Re2 {[%emt 0:02:20]} Nd4 {[%emt 0:00:22]} 26. Bxd4 $1 {[%emt 0:00:02]} Rxd4 {[%emt 0:00:22]} 27. Rexd2 {[%emt 0:01:08]} ({Much less strong is} 27. Rdxd2 Rcd8 $14) 27... Rcd8 {[%emt 0:00:21]} 28. Rxd4 {[%emt 0:00:28]} cxd4 {[%emt 0:00:50] [#]} 29. Bd3 $1 {[%emt 0:00:23]} Rc8 {[%emt 0:00:26]} 30. Bc4 $11 {[%emt 0:01:06]} (30. Kf2 $18) 30... Bxe4 {[%emt 0:00:00]} 31. Rxd4 {[%emt 0:00:12]} Bb1 {[%emt 0:00:41]} 32. a4 {[%emt 0:01:10]} Bg6 {[%emt 0:01:06]} 33. b4 {[%emt 0:03:04]} Bb1 {[%emt 0:01:00]} 34. b5 {[%emt 0:00:24]} Rc7 {[%emt 0:02:09]} 35. a5 {[%emt 0:00:00]} Bc2 {[%emt 0:00:00]} 36. Be2 {[%emt 0:00:00]} Rb7 {[%emt 0:00:00]} 37. Bf3 {[%emt 0:00:00]} f6 {[%emt 0:00:00]} 38. Rc4 {[%emt 0:00:00]} Rb8 {[%emt 0:00:00]} 39. Rc7 {[%emt 0:00:00]} Bd3 {[%emt 0:00:00]} 40. Rxg7+ {[%emt 0:00:00]} 1-0

[Event "IIFL Wealth  4th Mumbai Junior U-13"]
[Site "Mumbai"]
[Date "2018.12.31"]
[Round "2"]
[White "Potawad Anirudhha"]
[Black "Daakshin Arun"]
[Result "0-1"]
[ECO "B90"]
[WhiteElo "1849"]
[BlackElo "1400"]
[Annotator "NA"]
[PlyCount "92"]
[EventDate "2018.12.30"]
[EventType "swiss"]
[EventCountry "IND"]
[SourceTitle "playchess.com"]
[Source "ChessBase"]
[SourceQuality "1"]
[TimeControl "40/5400+30:1800+30"]

1. e4 {[%emt 0:00:04]} c5 {[%emt 0:00:00]} 2. Nf3 {[%emt 0:01:14]} d6 {[%emt 0:00:00]} 3. d4 {[%emt 0:00:05]} cxd4 {[%emt 0:00:02]} 4. Nxd4 {[%emt 0:00:08]} Nf6 {[%emt 0:00:07]} 5. Nc3 {[%emt 0:00:07]} a6 {[%emt 0:00:04]} 6. f3 {[%emt 0:02:24]} e5 {[%emt 0:00:10]} 7. Nb3 {[%emt 0:00:08]} Be6 {[%emt 0:00:07]} 8. Be3 {[%emt 0:02:39]} Be7 {[%emt 0:00:08]} 9. Qd2 {[%emt 0:02:24]} Nbd7 {[%emt 0:00:23]} 10. O-O-O {[%emt 0:01:43]} Rc8 {[%emt 0:00:14] B90: Sicilian Najdorf: Unusual White 6th moves, 6 Be3 Ng4 and 6 Be3 e5} 11. g4 {[%emt 0:05:56]} b5 {[%emt 0:01:32]} 12. Kb1 {[%emt 0:01:14]} Nb6 {[%emt 0:01:25]} 13. g5 {[%emt 0:12:32]} Nh5 {[%emt 0:01:42]} 14. Na5 {[%emt 0:09:22] LiveBook: 4 Games} Nc4 {[%emt 0:07:58]} 15. Nxc4 {[%emt 0:02:55]} bxc4 {[%emt 0:02:20]} 16. Nd5 {[%emt 0:05:05]} Bxd5 {[%emt 0:02:56]} 17. Qxd5 {[%emt 0:00:16]} Qc7 $146 {[%emt 0:03:32]} ({Predecessor:} 17... O-O 18. Rg1 c3 {1-0 (103) Priyanka,N (2104)-Matviishen,V (2404) Pardubice 2017}) 18. Bh3 {[%emt 0:05:35]} Rb8 {[%emt 0:00:54]} 19. Bg4 {[%emt 0:01:27]} g6 {[%emt 0:01:58]} 20. Bxh5 {[%emt 0:07:32]} gxh5 {[%emt 0:00:08]} 21. f4 Qc8 {[%emt 0:09:15]} 22. fxe5 {[%emt 0:05:19]} Rb5 {[%emt 0:00:00]} 23. Qd2 {[%emt 0:18:11]} (23. exd6 $11 {keeps the balance.} Rxd5 24. Rxd5 Bxd6 25. Rxd6) 23... c3 {[%emt 0:00:14]} 24. Qd3 {[%emt 0:00:41]} (24. Qc1 $17) 24... Rxb2+ {[%emt 0:00:34]} 25. Ka1 {[%emt 0:00:01]} dxe5 {[%emt 0:01:57]} 26. Qd5 $2 {[%emt 0:04:26]} (26. Rb1) 26... Rb5 {[%emt 0:02:18]} 27. Qd3 {[%emt 0:01:17]} Ba3 $19 {[%emt 0:00:44]} 28. Rb1 {[%emt 0:00:52]} Bb2+ {[%emt 0:00:39]} 29. Rxb2 {[%emt 0:00:02]} cxb2+ {[%emt 0:00:11]} 30. Kb1 {[%emt 0:00:07]} O-O {[%emt 0:09:18]} 31. Rd1 {[%emt 0:01:58]} Qe6 {[%emt 0:02:32]} 32. h4 {[%emt 0:02:16]} Ra5 {[%emt 0:03:27]} 33. a3 {[%emt 0:02:00]} Qe7 {[%emt 0:00:44]} 34. Ka2 {[%emt 0:02:01]} Rb8 {[%emt 0:00:52]} 35. Rb1 {[%emt 0:00:50]} Qe6+ {[%emt 0:00:45]} 36. c4 {[%emt 0:00:07]} Ra4 {[%emt 0:00:55]} 37. Qd5 {[%emt 0:03:53]} Qxd5 {[%emt 0:00:12]} 38. exd5 {[%emt 0:00:02]} Rxc4 {[%emt 0:00:17]} 39. Rxb2 {[%emt 0:00:00]} Rxb2+ {[%emt 0:00:00]} 40. Kxb2 {[%emt 0:00:00]} Kf8 {[%emt 0:00:00]} 41. Kb3 {[%emt 0:00:38]} Rxh4 {[%emt 0:01:51]} 42. Bc5+ {[%emt 0:00:49]} Ke8 {[%emt 0:00:06]} 43. Bd6 {[%emt 0:01:23]} Rd4 {[%emt 0:00:41]} 44. Bxe5 {[%emt 0:00:15]} Rxd5 {[%emt 0:00:05]} 45. Bf4 {[%emt 0:00:05]} Rf5 {[%emt 0:00:05]} 46. Bd2 {[%emt 0:00:08]} h4 0-1